{"text_format":"3","workbook":"xlsx","n_sheets":2,"sheets":["プロジェクト管理シート","セットアップ"],"not_rendered":{"defined_names":6},"read":"whole","date_system":"1900"}

{"sheet":"プロジェクト管理シート","index":0,"n_rows":13,"n_cols":15,"rows_kept":13}
[null,"プロジェクト管理シート"]
[null,null,"超過/過少率フラグ: ",{"v":0.25,"d":"25%"}]
[]
[null,"プロジェクト","カテゴリ","担当者","予定開始日","予定終了日","見積もり作業時間","見積もり期間 (日数)","実績\n開始日","実績\n終了日","超過/過少実績作業時間のフラグ アイコン","実績作業時間","超過/過少実績期間 (日数) のフラグ アイコン","実績期間 (日数)","メモ"]
[null,"プロジェクト 1","カテゴリ 1","従業員 1",{"$f":"TODAY()-65","v":"2016-10-19"},{"$f":"TODAY()-5","v":"2016-12-18"},210,{"$f":"IF(COUNTA(プロジェクト管理シート!$E5,プロジェクト管理シート!$F5)<>2,\"\",DAYS360(プロジェクト管理シート!$E5,プロジェクト管理シート!$F5,FALSE))","v":59},{"$f":"TODAY()-65","v":"2016-10-19"},{"$f":"TODAY()","v":"2016-12-23"},{"$f":"IFERROR(IF(プロジェクト管理シート[実績作業時間]=0,\"\",IF(ABS((プロジェクト管理シート[[#This Row],[実績作業時間]]-プロジェクト管理シート[[#This Row],[見積もり作業時間]])/プロジェクト管理シート[[#This Row],[見積もり作業時間]])>FlagPercent,1,0)),\"\")","v":1},300,{"$f":"IFERROR(IF(プロジェクト管理シート[実績期間 (日数)]=0,\"\",IF(ABS((プロジェクト管理シート[[#This Row],[実績期間 (日数)]]-プロジェクト管理シート[[#This Row],[見積もり期間 (日数)]])/プロジェクト管理シート[[#This Row],[見積もり期間 (日数)]])>FlagPercent,1,0)\n),\"\")","v":0},{"$f":"IF(COUNTA(プロジェクト管理シート!$I5,プロジェクト管理シート!$J5)<>2,\"\",DAYS360(プロジェクト管理シート!$I5,プロジェクト管理シート!$J5,FALSE))","v":64}]
[null,"プロジェクト 2","カテゴリ 2","従業員 4",{"$f":"TODAY()-41","v":"2016-11-12"},{"$f":"TODAY()-10","v":"2016-12-13"},400,{"$f":"IF(COUNTA(プロジェクト管理シート!$E6,プロジェクト管理シート!$F6)<>2,\"\",DAYS360(プロジェクト管理シート!$E6,プロジェクト管理シート!$F6,FALSE))","v":31},{"$f":"TODAY()-41","v":"2016-11-12"},{"$f":"TODAY()-7","v":"2016-12-16"},{"$f":"IFERROR(IF(プロジェクト管理シート[実績作業時間]=0,\"\",IF(ABS((プロジェクト管理シート[[#This Row],[実績作業時間]]-プロジェクト管理シート[[#This Row],[見積もり作業時間]])/プロジェクト管理シート[[#This Row],[見積もり作業時間]])>FlagPercent,1,0)),\"\")","v":0},390,{"$f":"IFERROR(IF(プロジェクト管理シート[実績期間 (日数)]=0,\"\",IF(ABS((プロジェクト管理シート[[#This Row],[実績期間 (日数)]]-プロジェクト管理シート[[#This Row],[見積もり期間 (日数)]])/プロジェクト管理シート[[#This Row],[見積もり期間 (日数)]])>FlagPercent,1,0)\n),\"\")","v":0},{"$f":"IF(COUNTA(プロジェクト管理シート!$I6,プロジェクト管理シート!$J6)<>2,\"\",DAYS360(プロジェクト管理シート!$I6,プロジェクト管理シート!$J6,FALSE))","v":34}]
[null,"プロジェクト 3","カテゴリ 1","従業員 2",{"$f":"TODAY()-100","v":"2016-09-14"},{"$f":"TODAY()-40","v":"2016-11-13"},500,{"$f":"IF(COUNTA(プロジェクト管理シート!$E7,プロジェクト管理シート!$F7)<>2,\"\",DAYS360(プロジェクト管理シート!$E7,プロジェクト管理シート!$F7,FALSE))","v":59},{"$f":"TODAY()-100","v":"2016-09-14"},{"$f":"TODAY()-27","v":"2016-11-26"},{"$f":"IFERROR(IF(プロジェクト管理シート[実績作業時間]=0,\"\",IF(ABS((プロジェクト管理シート[[#This Row],[実績作業時間]]-プロジェクト管理シート[[#This Row],[見積もり作業時間]])/プロジェクト管理シート[[#This Row],[見積もり作業時間]])>FlagPercent,1,0)),\"\")","v":0},500,{"$f":"IFERROR(IF(プロジェクト管理シート[実績期間 (日数)]=0,\"\",IF(ABS((プロジェクト管理シート[[#This Row],[実績期間 (日数)]]-プロジェクト管理シート[[#This Row],[見積もり期間 (日数)]])/プロジェクト管理シート[[#This Row],[見積もり期間 (日数)]])>FlagPercent,1,0)\n),\"\")","v":0},{"$f":"IF(COUNTA(プロジェクト管理シート!$I7,プロジェクト管理シート!$J7)<>2,\"\",DAYS360(プロジェクト管理シート!$I7,プロジェクト管理シート!$J7,FALSE))","v":72}]
[null,"プロジェクト 4","カテゴリ 2","従業員 3",{"$f":"TODAY()-90","v":"2016-09-24"},{"$f":"TODAY()-80","v":"2016-10-04"},250,{"$f":"IF(COUNTA(プロジェクト管理シート!$E8,プロジェクト管理シート!$F8)<>2,\"\",DAYS360(プロジェクト管理シート!$E8,プロジェクト管理シート!$F8,FALSE))","v":10},{"$f":"TODAY()-90","v":"2016-09-24"},{"$f":"TODAY()-71","v":"2016-10-13"},{"$f":"IFERROR(IF(プロジェクト管理シート[実績作業時間]=0,\"\",IF(ABS((プロジェクト管理シート[[#This Row],[実績作業時間]]-プロジェクト管理シート[[#This Row],[見積もり作業時間]])/プロジェクト管理シート[[#This Row],[見積もり作業時間]])>FlagPercent,1,0)),\"\")","v":0},276,{"$f":"IFERROR(IF(プロジェクト管理シート[実績期間 (日数)]=0,\"\",IF(ABS((プロジェクト管理シート[[#This Row],[実績期間 (日数)]]-プロジェクト管理シート[[#This Row],[見積もり期間 (日数)]])/プロジェクト管理シート[[#This Row],[見積もり期間 (日数)]])>FlagPercent,1,0)\n),\"\")","v":1},{"$f":"IF(COUNTA(プロジェクト管理シート!$I8,プロジェクト管理シート!$J8)<>2,\"\",DAYS360(プロジェクト管理シート!$I8,プロジェクト管理シート!$J8,FALSE))","v":19}]
[null,"プロジェクト 5","カテゴリ 3","従業員 2",{"$f":"TODAY()-90","v":"2016-09-24"},{"$f":"TODAY()-50","v":"2016-11-03"},300,{"$f":"IF(COUNTA(プロジェクト管理シート!$E9,プロジェクト管理シート!$F9)<>2,\"\",DAYS360(プロジェクト管理シート!$E9,プロジェクト管理シート!$F9,FALSE))","v":39},{"$f":"TODAY()-90","v":"2016-09-24"},{"$f":"TODAY()-44","v":"2016-11-09"},{"$f":"IFERROR(IF(プロジェクト管理シート[実績作業時間]=0,\"\",IF(ABS((プロジェクト管理シート[[#This Row],[実績作業時間]]-プロジェクト管理シート[[#This Row],[見積もり作業時間]])/プロジェクト管理シート[[#This Row],[見積もり作業時間]])>FlagPercent,1,0)),\"\")","v":0},310,{"$f":"IFERROR(IF(プロジェクト管理シート[実績期間 (日数)]=0,\"\",IF(ABS((プロジェクト管理シート[[#This Row],[実績期間 (日数)]]-プロジェクト管理シート[[#This Row],[見積もり期間 (日数)]])/プロジェクト管理シート[[#This Row],[見積もり期間 (日数)]])>FlagPercent,1,0)\n),\"\")","v":0},{"$f":"IF(COUNTA(プロジェクト管理シート!$I9,プロジェクト管理シート!$J9)<>2,\"\",DAYS360(プロジェクト管理シート!$I9,プロジェクト管理シート!$J9,FALSE))","v":45}]
[null,"プロジェクト 6","カテゴリ 4","従業員 4",{"$f":"TODAY()-60","v":"2016-10-24"},{"$f":"TODAY()-50","v":"2016-11-03"},500,{"$f":"IF(COUNTA(プロジェクト管理シート!$E10,プロジェクト管理シート!$F10)<>2,\"\",DAYS360(プロジェクト管理シート!$E10,プロジェクト管理シート!$F10,FALSE))","v":9},{"$f":"TODAY()-60","v":"2016-10-24"},{"$f":"TODAY()-45","v":"2016-11-08"},{"$f":"IFERROR(IF(プロジェクト管理シート[実績作業時間]=0,\"\",IF(ABS((プロジェクト管理シート[[#This Row],[実績作業時間]]-プロジェクト管理シート[[#This Row],[見積もり作業時間]])/プロジェクト管理シート[[#This Row],[見積もり作業時間]])>FlagPercent,1,0)),\"\")","v":0},510,{"$f":"IFERROR(IF(プロジェクト管理シート[実績期間 (日数)]=0,\"\",IF(ABS((プロジェクト管理シート[[#This Row],[実績期間 (日数)]]-プロジェクト管理シート[[#This Row],[見積もり期間 (日数)]])/プロジェクト管理シート[[#This Row],[見積もり期間 (日数)]])>FlagPercent,1,0)\n),\"\")","v":1},{"$f":"IF(COUNTA(プロジェクト管理シート!$I10,プロジェクト管理シート!$J10)<>2,\"\",DAYS360(プロジェクト管理シート!$I10,プロジェクト管理シート!$J10,FALSE))","v":14}]
[null,"プロジェクト 7","カテゴリ 5","従業員 1",{"$f":"TODAY()-44","v":"2016-11-09"},{"$f":"TODAY()-20","v":"2016-12-03"},750,{"$f":"IF(COUNTA(プロジェクト管理シート!$E11,プロジェクト管理シート!$F11)<>2,\"\",DAYS360(プロジェクト管理シート!$E11,プロジェクト管理シート!$F11,FALSE))","v":24},{"$f":"TODAY()-44","v":"2016-11-09"},{"$f":"TODAY()-15","v":"2016-12-08"},{"$f":"IFERROR(IF(プロジェクト管理シート[実績作業時間]=0,\"\",IF(ABS((プロジェクト管理シート[[#This Row],[実績作業時間]]-プロジェクト管理シート[[#This Row],[見積もり作業時間]])/プロジェクト管理シート[[#This Row],[見積もり作業時間]])>FlagPercent,1,0)),\"\")","v":0},790,{"$f":"IFERROR(IF(プロジェクト管理シート[実績期間 (日数)]=0,\"\",IF(ABS((プロジェクト管理シート[[#This Row],[実績期間 (日数)]]-プロジェクト管理シート[[#This Row],[見積もり期間 (日数)]])/プロジェクト管理シート[[#This Row],[見積もり期間 (日数)]])>FlagPercent,1,0)\n),\"\")","v":0},{"$f":"IF(COUNTA(プロジェクト管理シート!$I11,プロジェクト管理シート!$J11)<>2,\"\",DAYS360(プロジェクト管理シート!$I11,プロジェクト管理シート!$J11,FALSE))","v":29}]
[null,"プロジェクト 8","カテゴリ 2","従業員 1",{"$f":"TODAY()-39","v":"2016-11-14"},{"$f":"TODAY()","v":"2016-12-23"},450,{"$f":"IF(COUNTA(プロジェクト管理シート!$E12,プロジェクト管理シート!$F12)<>2,\"\",DAYS360(プロジェクト管理シート!$E12,プロジェクト管理シート!$F12,FALSE))","v":39},{"$f":"TODAY()-45","v":"2016-11-08"},{"$f":"TODAY()-5","v":"2016-12-18"},{"$f":"IFERROR(IF(プロジェクト管理シート[実績作業時間]=0,\"\",IF(ABS((プロジェクト管理シート[[#This Row],[実績作業時間]]-プロジェクト管理シート[[#This Row],[見積もり作業時間]])/プロジェクト管理シート[[#This Row],[見積もり作業時間]])>FlagPercent,1,0)),\"\")","v":0},430,{"$f":"IFERROR(IF(プロジェクト管理シート[実績期間 (日数)]=0,\"\",IF(ABS((プロジェクト管理シート[[#This Row],[実績期間 (日数)]]-プロジェクト管理シート[[#This Row],[見積もり期間 (日数)]])/プロジェクト管理シート[[#This Row],[見積もり期間 (日数)]])>FlagPercent,1,0)\n),\"\")","v":0},{"$f":"IF(COUNTA(プロジェクト管理シート!$I12,プロジェクト管理シート!$J12)<>2,\"\",DAYS360(プロジェクト管理シート!$I12,プロジェクト管理シート!$J12,FALSE))","v":40}]
[null,"プロジェクト 9","カテゴリ 4","従業員 1","2016-02-05","2016-06-09",250,{"$f":"IF(COUNTA(プロジェクト管理シート!$E13,プロジェクト管理シート!$F13)<>2,\"\",DAYS360(プロジェクト管理シート!$E13,プロジェクト管理シート!$F13,FALSE))","v":124},"2016-03-05","2016-05-05",{"$f":"IFERROR(IF(プロジェクト管理シート[実績作業時間]=0,\"\",IF(ABS((プロジェクト管理シート[[#This Row],[実績作業時間]]-プロジェクト管理シート[[#This Row],[見積もり作業時間]])/プロジェクト管理シート[[#This Row],[見積もり作業時間]])>FlagPercent,1,0)),\"\")","v":0},200,{"$f":"IFERROR(IF(プロジェクト管理シート[実績期間 (日数)]=0,\"\",IF(ABS((プロジェクト管理シート[[#This Row],[実績期間 (日数)]]-プロジェクト管理シート[[#This Row],[見積もり期間 (日数)]])/プロジェクト管理シート[[#This Row],[見積もり期間 (日数)]])>FlagPercent,1,0)\n),\"\")","v":1},{"$f":"IF(COUNTA(プロジェクト管理シート!$I13,プロジェクト管理シート!$J13)<>2,\"\",DAYS360(プロジェクト管理シート!$I13,プロジェクト管理シート!$J13,FALSE))","v":60}]

{"sheet":"セットアップ","index":1,"n_rows":10,"n_cols":3,"rows_kept":10}
[null,"セットアップ"]
[]
[]
[null,"カテゴリ名","従業員名"]
[null,"カテゴリ 1","従業員 1"]
[null,"カテゴリ 2","従業員 2"]
[null,"カテゴリ 3","従業員 3"]
[null,"カテゴリ 4","従業員 4"]
[null,"カテゴリ 5","従業員 5"]
[null,"カテゴリ 6","従業員 6"]